fUSD/lending_fUSD_20250814
["ID","MTS","AMOUNT","RATE_DAILY","PERIOD"]
[379216785,1755192631907,-3950.0,0.0002,2]
[379216787,1755192631916,-912.14691765,0.0002,2]
[379216790,1755192631926,-1316.17884551,0.0002,2]
[379216793,1755192631935,-8282.25870316,0.0002,2]
[379216798,1755192631946,-610.0,0.00020022,2]
[379216802,1755192631968,-207.26296893,0.00020043,2]
[379216803,1755192631978,-24795.14,0.00020067,2]
[379216805,1755192631988,-936.61,0.0002008,2]
[379216807,1755192631998,-305.33,0.0002015,2]
[379216809,1755192632009,-305.83,0.0002015,2]
[379216811,1755192632019,-223.88,0.00020187,2]
[379216813,1755192632030,-904.74,0.00020257,2]
[379216815,1755192632040,-165.93,0.00020265,2]
[379216817,1755192632050,-392.83,0.00020269,2]
[379216819,1755192632060,-170.0,0.00020275,7]
[379216821,1755192632070,-176.6,0.0002031,2]
[379216824,1755192632081,-500.0,0.00020319,2]
[379216826,1755192632091,-1442.56,0.00020319,2]
[379216828,1755192632101,-58566.94,0.00020319,2]
[379216830,1755192632112,-435.15,0.00020319,2]
[379216832,1755192632122,-435.15,0.0002033,2]
[379216834,1755192632133,-435.15,0.0002034,2]
[379216836,1755192632143,-435.15,0.00020351,2]
[379216838,1755192632153,-435.15,0.00020362,2]
[379216840,1755192632162,-435.15,0.00020372,2]
[379216841,1755192632172,-435.15,0.00020383,2]
[379216843,1755192632182,-435.15,0.00020394,2]
[379216845,1755192632195,-435.15,0.00020404,2]
[379216847,1755192632205,-435.15,0.00020415,2]
[379216849,1755192632216,-435.15,0.00020426,2]
[379216851,1755192632231,-435.15,0.00020436,2]
[379216853,1755192632241,-435.15,0.00020447,2]
[379216855,1755192632251,-435.15,0.00020458,2]
[379216857,1755192632263,-435.15,0.00020468,2]
[379216859,1755192632273,-435.15,0.00020479,2]
[379216861,1755192632284,-435.15,0.0002049,2]
[379216863,1755192632294,-435.15,0.000205,2]
[379216865,1755192632304,-435.15,0.00020511,2]
[379216866,1755192632314,-435.15,0.00020522,2]
[379216868,1755192632324,-1000.0,0.000207,2]
[379216870,1755192632334,-300.0,0.000207,2]
[379216872,1755192632344,-500.0,0.000207,2]
[379216874,1755192632354,-1000.0,0.000207,2]
[379216876,1755192632364,-300.0,0.000207,2]
[379216878,1755192632374,-500.0,0.000207,2]
[379216880,1755192632384,-1000.0,0.000207,2]
[379216882,1755192632394,-300.0,0.000207,2]
[379216883,1755192632404,-500.0,0.000207,2]
[379216885,1755192632414,-151.95,0.0002126,2]
[379216887,1755192632424,-392.83,0.00021282,2]
[379216889,1755192632434,-165.93,0.0002138,2]
[379216891,1755192632443,-420.0,0.00021383,2]
[379216893,1755192632453,-4894.543711,0.00021575,2]
[379216894,1755192632463,-3685.07,0.00021757,2]
[379216896,1755192632472,-666.0,0.00021918,3]
[379216898,1755192632482,-392.83,0.00022296,2]
[379216900,1755192632492,-165.93,0.00022495,2]
[379216902,1755192632501,-11928.77195323,0.000225,2]
[379216904,1755192632511,-904.74,0.0002279,2]
[379216906,1755192632521,-500.0,0.00022807,2]
[379216908,1755192632531,-405.89834447,0.00022807,2]
[379216910,1755192632540,-500.0,0.00022807,2]
[379216911,1755192632550,-500.0,0.00022807,2]
[379216913,1755192632560,-221.84340591,0.00022807,2]
[379216915,1755192632570,-748.26893567,0.00022857,2]
[379216917,1755192632580,-587.0,0.00023292,2]
[379216919,1755192632589,-392.83,0.00023309,2]
[379216963,1755192633047,-500.0,0.00023427,2]
[379216968,1755192633088,-165.93,0.0002361,2]
[379216971,1755192633108,-173.67,0.00023726,2]
[379216973,1755192633118,-6712.67362345,0.00023736,2]
[379216975,1755192633128,-500.0,0.00023836,2]
[379216977,1755192633138,-179.94,0.00023875,2]
[379216979,1755192633148,-563.5590576,0.00023967,2]
[379216981,1755192633158,-500.0,0.00024067,2]
[379216982,1755192633167,-500.0,0.00024067,2]
[379216984,1755192633177,-500.0,0.00024067,2]
[379216986,1755192633190,-6712.67362343,0.00024132,2]
[379216988,1755192633199,-219.0,0.00024254,2]
[379216990,1755192633210,-1351.0,0.000243,2]
[379216992,1755192633220,-392.83,0.00024323,2]
[379216994,1755192633231,-3449.68050361,0.00024402,2]
[379216996,1755192633240,-698.54933045,0.00024402,2]
[379216998,1755192633250,-162.07638108,0.00024427,2]
[379216999,1755192633259,-49278.84996252,0.00024502,2]
[379217001,1755192633271,-254787.09022008,0.00024502,2]
[379217003,1755192633280,-6712.67362343,0.00024527,2]
[379217005,1755192633290,-320.66499814,0.00024615,2]
[379217007,1755192633299,-501.79376621,0.00024615,2]
[379217009,1755192633309,-1000.0,0.00024615,2]
[379217011,1755192633319,-2000.0,0.00024658,15]
[379217013,1755192633329,-226.63447775,0.00024799,2]
[379217015,1755192633339,-500.0,0.00024799,2]
[379217017,1755192633348,-225.86925348,0.00024799,2]
[379217019,1755192633358,-183.67713208,0.00024799,2]
[379217020,1755192633367,-154.72294167,0.00024799,2]
[379217022,1755192633376,-373.3277424,0.00024799,2]
[379217024,1755192633386,-500.0,0.00024799,2]
[379217026,1755192633395,-210.24822238,0.00024799,2]
[379217028,1755192633405,-158.42536504,0.000248,2]
[379217030,1755192633414,-500.0,0.000248,9]
[379217032,1755192633424,-173307.229075,0.000248,2]
[379217034,1755192633435,-82092.8979829,0.0002489,2]
[379217036,1755192633444,-200.0,0.000249,2]
[379217038,1755192633453,-1100.0,0.000249,9]
[379217040,1755192633465,-108847.02570499,0.000249,2]
[379217042,1755192633480,-1277.10219932,0.000249,2]
[379217047,1755192633523,-395.27448478,0.000249,2]
[379217049,1755192633534,-1700.49674366,0.000249,2]
[379217052,1755192633554,-730.83033,0.000249,2]
[379217055,1755192633568,-955.72599994,0.000249,2]
[379217057,1755192633580,-1509.58850056,0.000249,2]
[379217059,1755192633591,-415.34616098,0.000249,2]
[379217079,1755192637454,-150.0,0.00020256,2]
[379217080,1755192637464,-746.48406773,0.00024813,2]
[379217081,1755192637570,-124.33734135,0.00024813,2]
[379217082,1755192637580,-49587.21524377,0.000249,2]
[379217083,1755192637589,-1840.09425214,0.000249,2]
[379217084,1755192637598,-4594.96126021,0.00024913,2]
[379217085,1755192637609,-6712.67362343,0.00024923,2]
[379217086,1755192637618,-698.54933041,0.00024953,2]
[379217087,1755192637627,-4594.96126021,0.0002499,2]
[379217088,1755192637637,-10000.0,0.00025,7]
[379217089,1755192637646,-1087.6,0.00025107,2]
[379217090,1755192637655,-4594.96126021,0.00025152,2]
[379217091,1755192637664,-1500.0,0.00025163,2]
[379217092,1755192637673,-4594.96126021,0.0002522,2]
[379217093,1755192637682,-1324.0,0.0002523,2]
[379217094,1755192637691,-13784.8837806,0.00025292,2]
[379217095,1755192637700,-4594.96126021,0.00025309,2]
[379217096,1755192637709,-6712.67362343,0.00025319,2]
[379217097,1755192637719,-823.0,0.00025372,2]
[379217098,1755192637728,-870.82140907,0.00025384,2]
[379217099,1755192637737,-176.6,0.00025388,2]
[379217100,1755192637746,-797.99,0.00025441,2]
[379217101,1755192637755,-2305.0,0.000255,3]
[379217117,1755192637916,-698.54933041,0.00025504,2]
[379217119,1755192637927,-303.89,0.00025582,2]
[379217121,1755192637937,-284.2,0.00025678,2]
[379217123,1755192637947,-4594.96126021,0.000257,2]
[379217125,1755192637956,-4594.96126021,0.00025704,2]
[379217127,1755192637966,-150.0,0.0002571,2]
[379217129,1755192637975,-2000.0,0.00025711,2]
[379217132,1755192637984,-6712.67362343,0.00025714,2]
[379217134,1755192637993,-4594.96126021,0.00025743,2]
[379217136,1755192638003,-2994.0,0.0002575,7]
[379217138,1755192638012,-797.99,0.00025753,2]
[379217140,1755192638021,-797.99,0.00025753,2]
[379217142,1755192638030,-797.99,0.00025753,2]
[379217145,1755192638039,-797.99,0.00025753,2]
[379217148,1755192638049,-797.99,0.00025753,2]
[379217151,1755192638058,-1595.57,0.00025753,2]
[379217154,1755192638067,-2994.0,0.00025768,2]
[379217156,1755192638077,-18379.8450408,0.00025791,2]
[379217158,1755192638086,-250.0,0.00025817,2]
[379217159,1755192638095,-4594.96126021,0.0002589,2]
[379217160,1755192638104,-1653.0,0.00025895,2]
[379217161,1755192638113,-1700.0,0.000259,9]
[379217162,1755192638122,-22974.806301,0.000259,2]
[379217163,1755192638132,-102682.9329074,0.0002591,2]
[379217164,1755192638141,-300.0,0.00025942,2]
[379217165,1755192638149,-600.0,0.00025942,2]
[379217166,1755192638158,-3748.25031049,0.00025942,2]
[379217167,1755192638167,-160.0,0.00025942,2]
[379217168,1755192638176,-151.0,0.00025942,2]
[379217169,1755192638187,-151.0,0.00025942,2]
[379217170,1755192638197,-250.0,0.00025942,2]
[379217172,1755192638206,-250.0,0.00025942,2]
[379217174,1755192638215,-250.0,0.00025942,2]
[379217176,1755192638224,-250.0,0.00025942,2]
[379217178,1755192638234,-3000.0,0.00025942,2]
[379217180,1755192638243,-277.35679052,0.00025942,2]
[379217182,1755192638253,-151.0,0.00025942,2]
[379217184,1755192638266,-174.31656182,0.00025992,2]
[379217186,1755192638276,-10000.0,0.00026,7]
[379217188,1755192638285,-5513.0,0.00026,5]
[379217190,1755192638294,-379.94766,0.00026,2]
[379217192,1755192638303,-9047.6035437,0.00026002,2]
[379217194,1755192638312,-154.3700143,0.00026002,2]
[379217196,1755192638321,-779582.047003,0.00026002,2]
[379217197,1755192638330,-698.54933041,0.00026055,2]
[379217198,1755192638339,-151.0,0.00026081,3]
[379217199,1755192638348,-151.0,0.00026081,3]
[379217200,1755192638358,-151.0,0.00026081,3]
[379217201,1755192638367,-151.0,0.00026081,3]
[379217202,1755192638375,-151.0,0.00026081,3]
[379217203,1755192638384,-151.0,0.00026081,3]
[379217204,1755192638393,-1217.0,0.00026081,3]
[379217205,1755192638402,-151.0,0.00026081,3]
[379217206,1755192638411,-151.0,0.00026081,3]
[379217207,1755192638420,-151.0,0.00026081,3]
[379217208,1755192638429,-1217.0,0.00026081,3]
[379217209,1755192638438,-1217.0,0.00026081,3]
[379217210,1755192638447,-1217.0,0.00026081,3]
[379217211,1755192638456,-151.0,0.00026081,3]
[379217212,1755192638465,-1217.0,0.00026081,3]
[379217213,1755192638475,-151.0,0.00026081,3]
[379217214,1755192638483,-1217.0,0.00026081,3]
[379217215,1755192638493,-151.0,0.00026081,3]
[379217216,1755192638502,-1217.0,0.00026081,3]
[379217217,1755192638510,-151.0,0.00026081,3]
[379217218,1755192638519,-151.0,0.00026081,3]
[379217219,1755192638529,-151.0,0.00026081,3]
[379217220,1755192638539,-151.0,0.00026081,3]
[379217221,1755192638548,-151.0,0.00026081,3]
[379217222,1755192638557,-1217.0,0.00026081,3]
[379217223,1755192638566,-151.0,0.00026081,3]
[379217224,1755192638575,-151.0,0.00026081,3]
[379217225,1755192638583,-203.46966659,0.00026081,3]
[379217226,1755192638592,-1217.0,0.00026081,3]
[379217227,1755192638601,-151.0,0.00026081,3]
[379217228,1755192638610,-1217.0,0.00026081,3]
[379217229,1755192638619,-6712.67362343,0.0002611,2]
[379217230,1755192638628,-4693.38805,0.0002611,2]
[379217231,1755192638637,-18199.4348735,0.00026156,2]
[379217232,1755192638646,-1297.0,0.0002616,2]
[379217233,1755192638655,-305.16,0.00026162,2]
[379217234,1755192638664,-151.0,0.00026162,2]
[379217235,1755192638673,-1217.0,0.00026162,3]
[379217236,1755192638682,-1217.0,0.00026162,3]
[379217237,1755192638692,-478.74,0.00026162,3]
[379217238,1755192638701,-1217.0,0.00026162,3]
[379217239,1755192638711,-151.0,0.00026162,3]
[379217240,1755192638720,-1217.0,0.00026162,3]
[379217241,1755192638729,-151.0,0.00026162,3]
[379217242,1755192638738,-1217.0,0.00026162,3]
[379217243,1755192638747,-151.0,0.00026162,3]
[379217244,1755192638757,-151.0,0.00026162,3]
[379217245,1755192638767,-151.0,0.00026162,3]
[379217246,1755192638776,-151.0,0.00026162,3]
[379217247,1755192638785,-151.0,0.00026162,3]
[379217248,1755192638794,-220.91617822,0.00026162,3]
[379217249,1755192638803,-151.0,0.00026162,3]
[379217250,1755192638812,-151.0,0.00026162,3]
[379217251,1755192638821,-151.0,0.00026162,3]
[379217252,1755192638830,-151.0,0.00026162,3]
[379217253,1755192638839,-153.0,0.00026162,3]
[379217254,1755192638849,-182.30170256,0.00026162,3]
[379217255,1755192638858,-1217.0,0.00026162,3]
[379217256,1755192638867,-153.72610135,0.00026162,3]
[379217257,1755192638877,-1217.0,0.00026162,3]
[379217258,1755192638885,-1217.0,0.00026162,3]
[379217259,1755192638894,-151.0,0.00026162,3]
[379217260,1755192638903,-151.0,0.00026162,3]
[379217261,1755192638913,-151.0,0.00026162,3]
[379217262,1755192638922,-151.0,0.00026162,3]
[379217263,1755192638932,-151.0,0.00026162,3]
[379217264,1755192638941,-151.0,0.00026162,3]
[379217265,1755192638950,-151.0,0.00026162,3]
[379217266,1755192638960,-151.0,0.00026162,3]
[379217267,1755192638970,-151.0,0.00026162,3]
[379217268,1755192638980,-151.0,0.00026162,3]
[379217269,1755192638989,-151.0,0.00026162,3]
[379217270,1755192638998,-151.0,0.00026162,3]
[379217271,1755192639007,-151.0,0.00026162,3]
[379217272,1755192639016,-151.0,0.00026162,3]
[379217273,1755192639026,-151.0,0.00026162,3]
[379217274,1755192639034,-151.0,0.00026162,3]
[379217275,1755192639043,-151.0,0.00026162,3]
[379217276,1755192639052,-151.0,0.00026162,3]
[379217277,1755192639061,-151.0,0.00026162,3]
[379217278,1755192639071,-151.0,0.00026162,3]
[379217279,1755192639080,-151.0,0.00026162,3]
[379217280,1755192639089,-151.0,0.00026162,3]
[379217281,1755192639099,-151.0,0.00026162,3]
[379217282,1755192639108,-151.0,0.00026162,3]
[379217283,1755192639118,-1217.0,0.00026162,3]
[379217284,1755192639127,-151.0,0.00026162,3]
[379217285,1755192639137,-151.0,0.00026162,3]
[379217286,1755192639146,-151.0,0.00026162,3]
[379217287,1755192639156,-151.0,0.00026162,3]
[379217288,1755192639166,-151.0,0.00026162,3]
[379217289,1755192639176,-151.0,0.00026162,3]
[379217290,1755192639187,-151.0,0.00026162,3]
[379217291,1755192639197,-151.0,0.00026162,3]
[379217292,1755192639207,-151.0,0.00026162,3]
[379217293,1755192639217,-1217.0,0.00026162,3]
[379217294,1755192639229,-1217.0,0.00026162,3]
[379217295,1755192639238,-1217.0,0.00026162,3]
[379217296,1755192639248,-151.0,0.00026162,3]
[379217297,1755192639257,-1217.0,0.00026162,3]
[379217298,1755192639271,-151.0,0.00026162,3]
[379217299,1755192639281,-151.0,0.00026162,3]
[379217300,1755192639291,-151.0,0.00026162,3]
[379217301,1755192639301,-151.0,0.00026162,3]
[379217302,1755192639310,-1217.0,0.00026162,3]
[379217303,1755192639321,-151.0,0.00026162,3]
[379217304,1755192639330,-1217.0,0.00026162,3]
[379217306,1755192639340,-151.0,0.00026162,3]
[379217308,1755192639349,-1217.0,0.00026162,3]
[379217311,1755192639359,-1217.0,0.00026162,3]
[379217313,1755192639368,-151.0,0.00026162,3]
[379217314,1755192639378,-151.0,0.00026162,3]
[379217315,1755192639387,-880.36026614,0.00026162,3]
[379217316,1755192639397,-151.0,0.00026162,3]
[379217317,1755192639407,-151.0,0.00026162,3]
[379217318,1755192639417,-151.0,0.00026162,3]
[379217319,1755192639426,-1217.0,0.00026162,3]
[379217320,1755192639436,-151.0,0.00026162,3]
[379217321,1755192639445,-151.0,0.00026162,3]
[379217322,1755192639454,-151.0,0.00026162,3]
[379217323,1755192639463,-151.0,0.00026162,3]
[379217324,1755192639474,-151.0,0.00026162,3]
[379217325,1755192639484,-151.0,0.00026162,3]
[379217326,1755192639493,-151.0,0.00026162,3]
[379217327,1755192639503,-151.0,0.00026162,3]
[379217328,1755192639512,-151.0,0.00026162,3]
[379217329,1755192639522,-151.0,0.00026162,3]
[379217330,1755192639531,-151.0,0.00026162,3]
[379217331,1755192639540,-151.0,0.00026162,3]
[379217332,1755192639550,-151.0,0.00026162,3]
[379217333,1755192639559,-151.0,0.00026162,3]
[379217334,1755192639568,-151.0,0.00026162,3]
[379217335,1755192639577,-151.0,0.00026162,3]
[379217336,1755192639586,-151.0,0.00026162,3]
[379217337,1755192639596,-151.0,0.00026162,3]
[379217338,1755192639605,-151.0,0.00026162,3]
[379217339,1755192639615,-223.75626098,0.00026162,3]
[379217340,1755192639624,-4693.38805,0.00026162,2]
[379217341,1755192639633,-211.86673127,0.0002617,3]
[379217342,1755192639642,-458.13769775,0.0002617,3]
[379217343,1755192639651,-389.38051048,0.00026192,30]
[379217344,1755192639661,-500.0,0.0002623,2]
[379217345,1755192639672,-2500.0,0.00026258,2]
[379217346,1755192639681,-389.38051048,0.00026301,30]
[379217347,1755192639691,-168.14,0.00026302,2]
[379217348,1755192639702,-4693.38805,0.0002636,2]
[379217349,1755192639711,-389.38051048,0.00026411,30]
[379217350,1755192639724,-600.0,0.0002649,2]
[379217351,1755192639734,-151.0,0.0002649,2]
[379217352,1755192639744,-151.0,0.0002649,2]
[379217353,1755192639753,-3410.802,0.00026491,2]
[379217354,1755192639763,-6712.67362343,0.00026506,2]
[379217355,1755192639772,-389.38051048,0.00026521,30]
[379217356,1755192639781,-347.24,0.00026536,2]
[379217357,1755192639791,-300.0,0.00026548,2]
[379217359,1755192639800,-389.38051048,0.00026603,30]
[379217361,1755192639809,-698.54933041,0.00026606,2]
[379217363,1755192639819,-4693.38805,0.0002661,2]
[379217365,1755192639828,-2740.0,0.00026669,7]
[379217367,1755192639837,-223.88,0.00026676,2]
[379217369,1755192639847,-1653.0,0.00026708,2]
[379217371,1755192639856,-389.38051048,0.00026712,30]
[379217373,1755192639866,-2742.0,0.00026716,7]
[379217375,1755192639875,-1653.0,0.00026774,2]
[379217377,1755192639885,-20411.99693424,0.0002679,2]
[379217379,1755192639895,-20411.99693424,0.00026794,2]
[379217381,1755192639904,-3797.0,0.00026796,2]
[379217382,1755192639914,-2300.0,0.000268,9]
[379217383,1755192639923,-3000.0,0.00026806,2]
[379217384,1755192639934,-1314.84105922,0.00026818,2]
[379217385,1755192639943,-389.38051048,0.00026822,30]
[379217386,1755192639952,-500.0,0.00026822,2]
[379217387,1755192639961,-23993.1296432,0.00026829,2]
[379217388,1755192639973,-1314.84105922,0.00026832,2]
[379217389,1755192639982,-13963.68177453,0.00026833,2]
[379217390,1755192639992,-320081.76787435,0.00026841,2]
[379217391,1755192640001,-160.0,0.00026843,2]
[379217392,1755192640010,-66092.80625704,0.00026849,2]
[379217393,1755192640019,-2054.89,0.00026849,14]
[379217394,1755192640028,-2500.0,0.0002685,3]
[379217395,1755192640038,-2500.0,0.0002685,3]
[379217396,1755192640047,-23993.1296432,0.00026857,2]
[379217397,1755192640056,-320081.76787435,0.0002686,2]
[379217398,1755192640066,-4693.38805,0.0002686,2]
[379217399,1755192640075,-66092.80625704,0.0002686,2]
[379217400,1755192640085,-13963.68177453,0.00026865,2]
[379217401,1755192640094,-320081.76787435,0.00026868,2]
[379217402,1755192640104,-23993.1296432,0.00026876,2]
[379217403,1755192640114,-23993.1296432,0.00026883,2]
[379217404,1755192640123,-66092.80625704,0.00026885,2]
[379217405,1755192640132,-1314.84105922,0.00026885,2]
[379217406,1755192640141,-1314.84105922,0.00026892,2]
[379217407,1755192640151,-20411.99693424,0.00026896,2]
[379217408,1755192640160,-13963.68177453,0.00026897,2]
[379217409,1755192640170,-1314.84105922,0.00026897,2]
[379217410,1755192640179,-2900.0,0.000269,9]
[379217411,1755192640192,-2765.29223536,0.000269,2]
[379217412,1755192640202,-2765.29223517,0.000269,2]
[379217413,1755192640211,-2765.29223517,0.000269,2]
[379217414,1755192640221,-2765.29223517,0.000269,2]
[379217415,1755192640231,-2765.29223517,0.000269,2]
[379217416,1755192640240,-2765.29223517,0.000269,2]
[379217417,1755192640249,-2765.29223517,0.000269,2]
[379217418,1755192640260,-2765.29223517,0.000269,2]
[379217419,1755192640269,-1000.0,0.000269,2]
[379217420,1755192640278,-2765.29223517,0.000269,2]
[379217421,1755192640288,-2765.29223517,0.000269,2]
[379217422,1755192640297,-2765.29223517,0.000269,2]
[379217423,1755192640306,-6712.67362343,0.00026901,2]
[379217424,1755192640315,-320081.76787435,0.00026902,2]
[379217425,1755192640325,-13963.68177453,0.00026903,2]
[379217426,1755192640334,-23993.1296432,0.00026908,2]
[379217427,1755192640343,-20411.99693424,0.00026918,2]
[379217428,1755192640352,-20411.99693424,0.0002692,2]
[379217429,1755192640362,-66092.80625704,0.00026931,2]
[379217430,1755192640372,-13963.68177453,0.00026942,2]
[379217431,1755192640382,-66092.80625704,0.00026953,2]
[379217432,1755192640391,-20411.99693424,0.00026954,2]
[379217433,1755192640400,-320081.76787435,0.00026955,2]
[379217434,1755192640409,-129236.87349773,0.00026958,2]
[379217435,1755192640505,-30781.7962,0.00026958,2]
[379217436,1755192640517,-606.4717904,0.00026958,2]
[379217437,1755192640528,-261.52156641,0.00026958,2]
[379217438,1755192640539,-776.91763605,0.00026958,2]
[379217439,1755192642153,-257.22484092,0.00026081,3]
[379217440,1755192642163,-151.0,0.00026081,3]
[379217441,1755192642172,-160.0,0.000262,3]
[379217442,1755192642183,-361.31450302,0.00026958,2]
[379217443,1755192642227,-2462.76866201,0.00026958,2]
[379217444,1755192642239,-13987.76771118,0.00026958,2]
[379217445,1755192642251,-590.55,0.00026958,2]
[379217450,1755192642397,-160.0,0.00025,7]
[379217451,1755192642407,-2194.352,0.00026958,2]
[379217452,1755192642418,-18465.30515045,0.00026958,2]
[379217485,1755192644006,-870.82140907,0.00025955,2]
[379217486,1755192644016,-1254.0,0.00026491,2]
[379217487,1755192644025,-263.13680375,0.00026857,2]
[379217488,1755192644034,-2765.29223517,0.000269,2]
[379217489,1755192644043,-4862.93801254,0.00026958,2]
[379217495,1755192645467,-8831.6,0.00026958,2]
[379217496,1755192645623,-2765.29223517,0.000269,2]
[379217497,1755192645633,-13642.64280697,0.00026958,2]
[379217498,1755192645645,-7430.95084253,0.00026958,2]
[379217499,1755192645689,-400.0,0.00026958,2]
[379217500,1755192645783,-2223.5001,0.00026958,2]
[379217526,1755192742469,190.29,0.00013699,2]
[379217530,1755192796276,1203.07,0.00030137,120]
[379217531,1755192807002,640.0,0.00025854,120]
[379217532,1755192807226,640.0,0.0002844,120]
[379217536,1755192963798,300.0,0.00027629,120]
[379217537,1755192963899,300.0,0.00025324,120]
[379217538,1755192964477,5000.0,0.00027629,120]
[379217539,1755192978393,5000.0,0.00025324,120]
[379217540,1755192978516,5000.0,0.00026091,120]
[379217545,1755193198408,2570.69,0.00030137,120]
[379217548,1755193271556,750.0,0.00028386,120]
[379217549,1755193271827,900.0,0.00029756,120]
[379217552,1755193339861,1862.1826081,0.0003,120]
[379217554,1755193413814,-357.0,0.00019313,2]
[379217555,1755193413838,-226.0,0.00019313,2]
[379217556,1755193413860,-300.0,0.00019313,2]
[379217557,1755193413883,-24117.0,0.00019314,2]
[379217562,1755193663237,638.0,0.0003013,120]
[379217563,1755193663393,-151.0,0.00019302,2]
[379217564,1755193663417,-600.0,0.00019302,2]
[379217565,1755193663440,-151.0,0.00019302,2]
[379217566,1755193663464,-600.0,0.00019302,2]
[379217567,1755193663488,-615.14131949,0.00019302,2]
[379217568,1755193663510,-500.0,0.00019302,2]
[379217569,1755193663532,-150.47,0.00019313,2]
[379217570,1755193663557,-195.0,0.00019313,2]
[379217571,1755193663580,-357.0,0.00019313,2]
[379217572,1755193663604,-79067.122052,0.00019314,2]
[379217573,1755193666073,773.3241974,0.0003013,120]
[379217574,1755193683544,155.1389606,0.0003013,120]
[379217589,1755193722227,893.86026681,0.0003013,120]
[379217590,1755193723170,-500.0,0.00019357,2]
[379217591,1755193723196,-305.9,0.00019361,2]
[379217592,1755193723219,-300.0,0.0001939,2]
[379217593,1755193723244,-500.0,0.00019412,2]
[379217594,1755193723268,-500.0,0.00019467,2]
[379217595,1755193723292,-500.0,0.00019522,2]
[379217596,1755193723318,-500.0,0.00019577,2]
[379217597,1755193723342,-150.28,0.00019619,2]
[379217598,1755193723365,-500.0,0.00019632,2]
[379217599,1755193723390,-300.0,0.00019656,2]
[379217600,1755193723426,-500.0,0.00019687,2]
[379217601,1755193723454,-500.0,0.00019742,2]
[379217602,1755193723481,-500.0,0.00019797,2]
[379217603,1755193723506,-500.0,0.00019852,2]
[379217604,1755193723531,-928.55887154,0.0002,10]
[379217605,1755193723558,-190.29,0.00020187,2]
[379217606,1755193723586,-640.0,0.00020683,2]
[379217607,1755193740268,219.91,0.00027078,120]
[379217608,1755193740650,219.91,0.00030087,120]
[379217612,1755193801877,-151.0,0.00019244,2]
[379217613,1755193801900,-300.0,0.00019313,2]
[379217614,1755193801923,-303.89,0.00019358,2]
[379217615,1755193801945,-305.07,0.00019426,2]
[379217616,1755193801969,-305.11,0.00019769,2]
[379217617,1755193801994,-300.84,0.00019769,2]
[379217618,1755193802017,-1000.0,0.00020965,2]
[379217619,1755193802040,-305.68,0.00020965,2]
[379217620,1755193802063,-300.0,0.00021244,2]
[379217621,1755193802088,-300.0,0.00021244,2]
[379217622,1755193802111,-500.0,0.00021244,2]
[379217624,1755193802135,-1000.0,0.00021244,2]
[379217625,1755193802159,-300.0,0.00021245,2]
[379217626,1755193802185,-4329.47552475,0.00021624,2]
[379217627,1755193802530,298.93447525,0.00021044,2]
[379217628,1755193808671,-500.0,0.00019213,2]
[379217629,1755193808696,-1200.0,0.00019313,2]
[379217630,1755193808720,-300.0,0.00019314,2]
[379217631,1755193808743,-500.0,0.00019314,2]
[379217632,1755193808765,-305.29,0.00019426,2]
[379217633,1755193808788,-300.0,0.0001951,2]
[379217634,1755193808811,-500.0,0.0001951,2]
[379217635,1755193808839,-121.06552475,0.00021044,2]
[379217636,1755193808887,-1680.0,0.00021146,2]